[Event "Early-Titled-Tuesday-Blitz-March-19-2024"]
[Site "Chess.com"]
[Date "2024.03.19"]
[Round "10"]
[White "RandomNoob04"]
[Black "noblerone"]
[Result "0-1"]
[WhiteElo "2640"]
[BlackElo "2558"]
[TimeControl "180+1"]
[EndTime "9:55:39 PDT"]
[Termination "noblerone won by checkmate"]

1. e4 {[%clk 0:03:00.9]} 1... c5 {[%clk 0:02:58.9]} 2. d4 {[%clk 0:03:01.5]}
2... cxd4 {[%clk 0:02:58.7]} 3. c3 {[%clk 0:03:02.3]} 3... Nf6 {[%clk
0:02:58.1]} 4. e5 {[%clk 0:03:02.4]} 4... Nd5 {[%clk 0:02:58.6]} 5. Nf3 {[%clk
0:03:03.3]} 5... e6 {[%clk 0:02:56.6]} 6. cxd4 {[%clk 0:03:03.4]} 6... d6 {[%clk
0:02:56.7]} 7. Bc4 {[%clk 0:03:02.9]} 7... Be7 {[%clk 0:02:56.3]} 8. O-O {[%clk
0:03:03.3]} 8... O-O {[%clk 0:02:55.6]} 9. Qe2 {[%clk 0:03:04]} 9... b6 {[%clk
0:02:37.9]} 10. Bxd5 {[%clk 0:02:56.8]} 10... exd5 {[%clk 0:02:36.6]} 11. Nc3
{[%clk 0:02:57.7]} 11... Ba6 {[%clk 0:02:30.8]} 12. Nb5 {[%clk 0:02:54.9]} 12...
Qd7 {[%clk 0:02:20.9]} 13. a4 {[%clk 0:02:55.3]} 13... Nc6 {[%clk 0:02:17.1]}
14. Bf4 {[%clk 0:02:46.7]} 14... Rfe8 {[%clk 0:02:12.8]} 15. Qd2 {[%clk
0:02:37.7]} 15... Bxb5 {[%clk 0:02:08.2]} 16. axb5 {[%clk 0:02:37.1]} 16... Na5
{[%clk 0:02:08.8]} 17. Rad1 {[%clk 0:02:31.3]} 17... dxe5 {[%clk 0:01:51.1]} 18.
dxe5 {[%clk 0:02:32.2]} 18... Qxb5 {[%clk 0:01:50.8]} 19. Qxd5 {[%clk
0:02:29.7]} 19... Qxb2 {[%clk 0:01:48.5]} 20. e6 {[%clk 0:02:09]} 20... f6
{[%clk 0:01:29.6]} 21. Nd4 {[%clk 0:01:36.4]} 21... Rad8 {[%clk 0:01:18.2]} 22.
Qe4 {[%clk 0:01:36.7]} 22... Qb4 {[%clk 0:01:11.6]} 23. Bc7 {[%clk 0:01:07]}
23... Rc8 {[%clk 0:01:02.7]} 24. Bg3 {[%clk 0:01:07]} 24... Rc4 {[%clk
0:00:56.3]} 25. Qd3 {[%clk 0:00:08.6]} 25... Rd8 {[%clk 0:00:22.6]} 26. Qf3
{[%clk 0:00:08.6]} 26... Rcxd4 {[%clk 0:00:18]} 27. Rb1 {[%clk 0:00:09.2]} 27...
Qc5 {[%clk 0:00:14.7]} 28. h4 {[%clk 0:00:09.4]} 28... Qd5 {[%clk 0:00:14.1]}
29. Qe3 {[%clk 0:00:07.2]} 29... Rd3 {[%clk 0:00:14.3]} 30. Qe2 {[%clk 0:00:07]}
30... Rxg3 {[%clk 0:00:13.4]} 31. fxg3 {[%clk 0:00:07.7]} 31... Qc5+ {[%clk
0:00:04]} 32. Kh1 {[%clk 0:00:08.1]} 32... Re8 {[%clk 0:00:03.9]} 33. Rfc1
{[%clk 0:00:07.7]} 33... Qd6 {[%clk 0:00:04.1]} 34. Rd1 {[%clk 0:00:08.3]} 34...
Qxg3 {[%clk 0:00:04.2]} 35. Rd3 {[%clk 0:00:05.6]} 35... Qxh4+ {[%clk
0:00:03.2]} 36. Rh3 {[%clk 0:00:06.2]} 36... Qg5 {[%clk 0:00:03.3]} 37. Rb5
{[%clk 0:00:05.2]} 37... Bc5 {[%clk 0:00:02.7]} 38. Rbb3 {[%clk 0:00:02.7]}
38... Qc1+ {[%clk 0:00:02.8]} 39. Kh2 {[%clk 0:00:03.2]} 39... Qg1+ {[%clk
0:00:03]} 40. Kg3 {[%clk 0:00:03.8]} 40... Qd4 {[%clk 0:00:03.8]} 41. Rf3 {[%clk
0:00:03.5]} 41... Bd6+ {[%clk 0:00:04]} 42. Rf4 {[%clk 0:00:01.5]} 42... Qxf4#
{[%clk 0:00:04.7]} 0-1

[Event "Early-Titled-Tuesday-Blitz-March-19-2024"]
[Site "Chess.com"]
[Date "2024.03.19"]
[Round "10"]
[White "KorolDimitriy75"]
[Black "Barbix1"]
[Result "0-1"]
[WhiteElo "2394"]
[BlackElo "2291"]
[TimeControl "180+1"]
[EndTime "9:55:39 PDT"]
[Termination "Barbix1 won on time"]

1. d4 {[%clk 0:03:00.9]} 1... Nf6 {[%clk 0:02:57.8]} 2. c4 {[%clk 0:03:01.1]}
2... e6 {[%clk 0:02:57.2]} 3. Nc3 {[%clk 0:03:01.4]} 3... Bb4 {[%clk 0:02:56]}
4. Qc2 {[%clk 0:03:01.4]} 4... O-O {[%clk 0:02:44.4]} 5. e4 {[%clk 0:03:01.5]}
5... Bxc3+ {[%clk 0:02:33.4]} 6. bxc3 {[%clk 0:03:01.2]} 6... c5 {[%clk
0:02:25.7]} 7. e5 {[%clk 0:02:58.5]} 7... Ne8 {[%clk 0:02:24.3]} 8. Bd3 {[%clk
0:02:58.3]} 8... f5 {[%clk 0:02:15]} 9. exf6 {[%clk 0:02:45]} 9... Nxf6 {[%clk
0:02:14.3]} 10. Nf3 {[%clk 0:02:37.6]} 10... cxd4 {[%clk 0:01:43.6]} 11. cxd4
{[%clk 0:02:37.2]} 11... Nc6 {[%clk 0:01:42.2]} 12. Rb1 {[%clk 0:02:31.2]} 12...
Qa5+ {[%clk 0:01:32]} 13. Bd2 {[%clk 0:02:30.7]} 13... Qh5 {[%clk 0:01:31.2]}
14. O-O {[%clk 0:02:14.6]} 14... b6 {[%clk 0:01:26.8]} 15. Rfe1 {[%clk
0:00:49.4]} 15... Bb7 {[%clk 0:01:24.9]} 16. h3 {[%clk 0:00:47.4]} 16... Ne7
{[%clk 0:01:14.4]} 17. d5 {[%clk 0:00:42.9]} 17... Nf5 {[%clk 0:00:58.6]} 18.
Bc3 {[%clk 0:00:14.4]} 18... Rac8 {[%clk 0:00:52.7]} 19. Bxf5 {[%clk 0:00:12.2]}
19... exf5 {[%clk 0:00:51.3]} 20. Re7 {[%clk 0:00:12.8]} 20... Rf7 {[%clk
0:00:18.7]} 21. Rbe1 {[%clk 0:00:12.3]} 21... Rxc4 {[%clk 0:00:14.2]} 22. Rxf7
{[%clk 0:00:09.3]} 22... Qxf7 {[%clk 0:00:13.6]} 23. Qd3 {[%clk 0:00:08.3]}
23... Re4 {[%clk 0:00:12.4]} 24. Rc1 {[%clk 0:00:07.2]} 24... Qxd5 {[%clk
0:00:08.6]} 25. Qc2 {[%clk 0:00:06.7]} 25... Rc4 {[%clk 0:00:07.4]} 26. Qb2
{[%clk 0:00:05.9]} 26... Qc6 {[%clk 0:00:06.8]} 27. Bd2 {[%clk 0:00:03.9]} 27...
Rxc1+ {[%clk 0:00:05.9]} 28. Bxc1 {[%clk 0:00:04.8]} 28... Ne4 {[%clk
0:00:05.2]} 29. Be3 {[%clk 0:00:04.4]} 29... Nc5 {[%clk 0:00:04.4]} 30. Qe5
{[%clk 0:00:04]} 30... Qe6 {[%clk 0:00:04.2]} 31. Qc7 {[%clk 0:00:03.8]} 31...
h6 {[%clk 0:00:03]} 32. Bxc5 {[%clk 0:00:03.4]} 32... bxc5 {[%clk 0:00:03.4]}
33. Qxb7 {[%clk 0:00:03.4]} 33... d5 {[%clk 0:00:03.9]} 34. Qxa7 {[%clk
0:00:02.4]} 34... c4 {[%clk 0:00:03]} 35. Qd4 {[%clk 0:00:02.5]} 35... Qc6
{[%clk 0:00:02.7]} 36. Ne5 {[%clk 0:00:01.5]} 36... Qc7 {[%clk 0:00:02.6]} 0-1

[Event "Early-Titled-Tuesday-Blitz-March-19-2024"]
[Site "Chess.com"]
[Date "2024.03.19"]
[Round "10"]
[White "GrotBchess"]
[Black "Pumpkin_in_moonlight"]
[Result "1-0"]
[WhiteElo "2405"]
[BlackElo "2215"]
[TimeControl "180+1"]
[EndTime "9:55:44 PDT"]
[Termination "GrotBchess won by resignation"]

1. d4 {[%clk 0:03:00.9]} 1... Nf6 {[%clk 0:02:58.9]} 2. c4 {[%clk 0:02:52.5]}
2... g6 {[%clk 0:02:58.8]} 3. Nc3 {[%clk 0:02:51]} 3... Bg7 {[%clk 0:02:59.1]}
4. e4 {[%clk 0:02:50.5]} 4... d6 {[%clk 0:02:59.5]} 5. f3 {[%clk 0:02:50.8]}
5... O-O {[%clk 0:02:59]} 6. Be3 {[%clk 0:02:51.2]} 6... e5 {[%clk 0:02:58.5]}
7. d5 {[%clk 0:02:50.1]} 7... a5 {[%clk 0:02:57.4]} 8. Qd2 {[%clk 0:02:50.4]}
8... Nfd7 {[%clk 0:02:52]} 9. g4 {[%clk 0:02:50.4]} 9... Na6 {[%clk 0:02:50.8]}
10. h4 {[%clk 0:02:48.6]} 10... Ndc5 {[%clk 0:02:39.4]} 11. h5 {[%clk
0:02:46.5]} 11... f5 {[%clk 0:02:32.1]} 12. hxg6 {[%clk 0:02:44.6]} 12... hxg6
{[%clk 0:02:27.1]} 13. Bh6 {[%clk 0:02:41.3]} 13... f4 {[%clk 0:02:16.3]} 14.
Qh2 {[%clk 0:02:27.5]} 14... Qe7 {[%clk 0:02:13.8]} 15. g5 {[%clk 0:02:19.7]}
15... Nb4 {[%clk 0:01:43.7]} 16. O-O-O {[%clk 0:02:15.8]} 16... a4 {[%clk
0:01:36.4]} 17. a3 {[%clk 0:02:15]} 17... Nb3+ {[%clk 0:01:33.1]} 18. Kb1 {[%clk
0:02:11.5]} 18... Na6 {[%clk 0:01:31.6]} 19. Nh3 {[%clk 0:02:07.9]} 19... Nd4
{[%clk 0:01:14.9]} 20. Bg2 {[%clk 0:02:01.8]} 20... Bd7 {[%clk 0:00:49.7]} 21.
Nf2 {[%clk 0:02:00]} 21... Bxh6 {[%clk 0:00:35.6]} 22. gxh6 {[%clk 0:01:54.7]}
22... Kh7 {[%clk 0:00:33.5]} 23. Rdg1 {[%clk 0:01:35.1]} 23... Nc5 {[%clk
0:00:31.8]} 24. Nh3 {[%clk 0:01:24.4]} 24... Bxh3 {[%clk 0:00:17.4]} 25. Qxh3
{[%clk 0:01:23.3]} 25... Nd3 {[%clk 0:00:16.1]} 26. Nd1 {[%clk 0:01:19.2]} 26...
Rg8 {[%clk 0:00:13.8]} 27. Bf1 {[%clk 0:01:19.1]} 27... Ne1 {[%clk 0:00:11.3]}
28. Bg2 {[%clk 0:01:12]} 28... Nxg2 {[%clk 0:00:11.1]} 29. Rxg2 {[%clk 0:01:12]}
29... Raf8 {[%clk 0:00:10.7]} 30. Nf2 {[%clk 0:01:09.4]} 30... Ne2 {[%clk
0:00:09.5]} 31. Qg4 {[%clk 0:01:03.8]} 31... Ng3 {[%clk 0:00:09.4]} 32. Rhh2
{[%clk 0:01:03.8]} 32... Qf7 {[%clk 0:00:08.2]} 33. Nh3 {[%clk 0:01:02]} 33...
Qe7 {[%clk 0:00:06.6]} 34. Ng5+ {[%clk 0:01:01.8]} 34... Kh8 {[%clk 0:00:06.7]}
35. h7 {[%clk 0:00:58.2]} 35... Rg7 {[%clk 0:00:06.8]} 36. Rh6 {[%clk
0:00:58.5]} 36... Re8 {[%clk 0:00:05.6]} 37. Rgh2 {[%clk 0:00:58.2]} 37... Qd7
{[%clk 0:00:05.1]} 38. Qxd7 {[%clk 0:00:53.6]} 38... Rxd7 {[%clk 0:00:05.2]} 39.
Rxg6 {[%clk 0:00:54.1]} 39... Rg7 {[%clk 0:00:04.2]} 40. Rxg7 {[%clk 0:00:53.8]}
40... Kxg7 {[%clk 0:00:04.5]} 41. Ne6+ {[%clk 0:00:52.7]} 41... Kh8 {[%clk
0:00:04.1]} 42. Nxc7 {[%clk 0:00:53]} 42... Re7 {[%clk 0:00:02.6]} 43. Nb5
{[%clk 0:00:52.3]} 43... Rxh7 {[%clk 0:00:02.7]} 44. Rxh7+ {[%clk 0:00:51]}
44... Kxh7 {[%clk 0:00:03.6]} 45. Nxd6 {[%clk 0:00:51.1]} 45... Ne2 {[%clk
0:00:03.8]} 46. Nf7 {[%clk 0:00:50.1]} 46... Nd4 {[%clk 0:00:03]} 47. Nxe5
{[%clk 0:00:50.1]} 47... Kg7 {[%clk 0:00:02.8]} 48. d6 {[%clk 0:00:50.4]} 48...
Kf6 {[%clk 0:00:02.7]} 49. d7 {[%clk 0:00:46.7]} 49... Ke7 {[%clk 0:00:02.6]}
50. Kc1 {[%clk 0:00:46.7]} 50... Ne2+ {[%clk 0:00:01.9]} 51. Kd2 {[%clk
0:00:46.7]} 51... Nd4 {[%clk 0:00:02.1]} 52. Kd3 {[%clk 0:00:46.4]} 52... Nb3
{[%clk 0:00:02.2]} 53. Kc3 {[%clk 0:00:46.4]} 53... Nc5 {[%clk 0:00:02.2]} 54.
Kd4 {[%clk 0:00:46]} 54... Ne6+ {[%clk 0:00:02.4]} 55. Kd5 {[%clk 0:00:45.8]}
55... Nd8 {[%clk 0:00:02.7]} 56. Kc5 {[%clk 0:00:45.7]} 56... Ne6+ {[%clk
0:00:02.7]} 57. Kb6 {[%clk 0:00:45.6]} 57... Nd8 {[%clk 0:00:02.9]} 58. Kc7
{[%clk 0:00:45.3]} 58... Ne6+ {[%clk 0:00:02.6]} 59. Kc8 {[%clk 0:00:45.6]}
59... Nd8 {[%clk 0:00:02.4]} 60. Ng6+ {[%clk 0:00:45.6]} 1-0

[Event "Early-Titled-Tuesday-Blitz-March-19-2024"]
[Site "Chess.com"]
[Date "2024.03.19"]
[Round "10"]
[White "AnishOnYoutube"]
[Black "maciek_92"]
[Result "1-0"]
[WhiteElo "3050"]
[BlackElo "2901"]
[TimeControl "180+1"]
[EndTime "9:55:46 PDT"]
[Termination "AnishOnYoutube won by resignation"]

1. Nf3 {[%clk 0:03:00.9]} 1... d5 {[%clk 0:02:55.4]} 2. d4 {[%clk 0:03:00.9]}
2... Nf6 {[%clk 0:02:55.3]} 3. Bf4 {[%clk 0:03:00.8]} 3... c5 {[%clk 0:02:55]}
4. e3 {[%clk 0:03:01.4]} 4... Nc6 {[%clk 0:02:55.5]} 5. Nbd2 {[%clk 0:03:01.8]}
5... Nh5 {[%clk 0:02:56]} 6. Be5 {[%clk 0:03:01.5]} 6... f6 {[%clk 0:02:53.7]}
7. c4 {[%clk 0:03:01.3]} 7... fxe5 {[%clk 0:02:46.1]} 8. cxd5 {[%clk 0:03:00.1]}
8... Qxd5 {[%clk 0:02:21.8]} 9. Bc4 {[%clk 0:03:00]} 9... Qd6 {[%clk 0:02:22.5]}
10. Ng5 {[%clk 0:02:59.2]} 10... Nf6 {[%clk 0:01:51.3]} 11. Bf7+ {[%clk
0:02:45.9]} 11... Kd8 {[%clk 0:01:41.7]} 12. Nc4 {[%clk 0:02:43.9]} 12... Qb8
{[%clk 0:01:29.9]} 13. dxe5+ {[%clk 0:02:28.1]} 13... Kc7 {[%clk 0:01:22.2]} 14.
exf6 {[%clk 0:02:27.3]} 14... gxf6 {[%clk 0:01:15.8]} 15. Ne6+ {[%clk
0:02:21.5]} 15... Bxe6 {[%clk 0:01:14.9]} 16. Bxe6 {[%clk 0:02:22.4]} 16... Qe8
{[%clk 0:01:13.4]} 17. Qf3 {[%clk 0:02:11.8]} 17... b5 {[%clk 0:01:13.4]} 18.
Qf4+ {[%clk 0:02:01.9]} 18... Kb7 {[%clk 0:01:11.6]} 19. O-O {[%clk 0:01:46.3]}
19... bxc4 {[%clk 0:01:05.4]} 20. Qxc4 {[%clk 0:01:46.5]} 20... Rd8 {[%clk
0:01:00.7]} 21. b4 {[%clk 0:01:40.7]} 21... Ne5 {[%clk 0:00:48.4]} 22. Bd5+
{[%clk 0:00:57]} 22... Rxd5 {[%clk 0:00:47.7]} 23. Qxd5+ {[%clk 0:00:57.3]}
23... Qc6 {[%clk 0:00:48.6]} 24. Qxc5 {[%clk 0:00:56.2]} 24... e6 {[%clk
0:00:46.9]} 25. Qxc6+ {[%clk 0:00:55.5]} 25... Nxc6 {[%clk 0:00:45.4]} 26. a3
{[%clk 0:00:55.2]} 26... Bd6 {[%clk 0:00:38.7]} 27. Rfd1 {[%clk 0:00:54.1]}
27... Bc7 {[%clk 0:00:38.3]} 28. Rd7 {[%clk 0:00:52.8]} 28... Rd8 {[%clk
0:00:27.7]} 29. Rxh7 {[%clk 0:00:51.7]} 29... Kb6 {[%clk 0:00:28]} 30. Rc1
{[%clk 0:00:45.6]} 30... Be5 {[%clk 0:00:28.1]} 31. Rb1 {[%clk 0:00:39.2]} 31...
Bb2 {[%clk 0:00:26.4]} 32. h4 {[%clk 0:00:33.6]} 32... Bxa3 {[%clk 0:00:26.3]}
33. b5 {[%clk 0:00:34.2]} 33... Ne5 {[%clk 0:00:26.2]} 34. h5 {[%clk 0:00:34.2]}
34... Rd2 {[%clk 0:00:24.4]} 35. h6 {[%clk 0:00:27.9]} 35... f5 {[%clk
0:00:13.9]} 36. Rh8 {[%clk 0:00:22.1]} 36... Ng4 {[%clk 0:00:09.4]} 37. h7
{[%clk 0:00:19.5]} 37... Bb2 {[%clk 0:00:09.9]} 38. Rb8+ {[%clk 0:00:16.6]}
38... Kc7 {[%clk 0:00:09.6]} 39. h8=Q {[%clk 0:00:14.6]} 39... Bxh8 {[%clk
0:00:09.8]} 40. Rxh8 {[%clk 0:00:15.5]} 40... Rxf2 {[%clk 0:00:10]} 41. Rh7+
{[%clk 0:00:15]} 41... Kd6 {[%clk 0:00:06.8]} 42. Rxa7 {[%clk 0:00:14.9]} 42...
Re2 {[%clk 0:00:07.4]} 43. b6 {[%clk 0:00:13.7]} 43... Nxe3 {[%clk 0:00:07.6]}
44. b7 {[%clk 0:00:14.1]} 44... Rxg2+ {[%clk 0:00:08.3]} 45. Kh1 {[%clk
0:00:14.5]} 45... Kd5 {[%clk 0:00:07.2]} 46. b8=Q {[%clk 0:00:14.7]} 46... Re2
{[%clk 0:00:08.1]} 47. Ra5+ {[%clk 0:00:12.6]} 47... Ke4 {[%clk 0:00:07.7]} 48.
Ra4+ {[%clk 0:00:12.8]} 1-0

[Event "Early-Titled-Tuesday-Blitz-March-19-2024"]
[Site "Chess.com"]
[Date "2024.03.19"]
[Round "10"]
[White "Casper"]
[Black "Zavgorodniy_Sergiy"]
[Result "0-1"]
[WhiteElo "2501"]
[BlackElo "2620"]
[TimeControl "180+1"]
[EndTime "9:55:46 PDT"]
[Termination "Zavgorodniy_Sergiy won on time"]

1. Nf3 {[%clk 0:03:00.9]} 1... d5 {[%clk 0:02:59.1]} 2. b3 {[%clk 0:03:01.3]}
2... Nf6 {[%clk 0:02:57.7]} 3. Bb2 {[%clk 0:03:02.2]} 3... e6 {[%clk 0:02:57.1]}
4. e3 {[%clk 0:03:01.2]} 4... Be7 {[%clk 0:02:56.9]} 5. c4 {[%clk 0:03:01.8]}
5... O-O {[%clk 0:02:55.4]} 6. Nc3 {[%clk 0:03:02.4]} 6... b6 {[%clk 0:02:54.2]}
7. cxd5 {[%clk 0:03:02.1]} 7... exd5 {[%clk 0:02:53]} 8. g3 {[%clk 0:03:02.4]}
8... Bb7 {[%clk 0:02:51.1]} 9. Bg2 {[%clk 0:03:02.8]} 9... Nbd7 {[%clk
0:02:50.9]} 10. O-O {[%clk 0:03:01.7]} 10... c5 {[%clk 0:02:45.2]} 11. d4 {[%clk
0:03:01.3]} 11... Rc8 {[%clk 0:02:43.4]} 12. Rc1 {[%clk 0:03:01.3]} 12... a6
{[%clk 0:02:41]} 13. Re1 {[%clk 0:03:01.5]} 13... Re8 {[%clk 0:02:38.6]} 14. Re2
{[%clk 0:03:01.5]} 14... Bd6 {[%clk 0:02:37.9]} 15. Rec2 {[%clk 0:02:59.9]}
15... Qe7 {[%clk 0:02:36.8]} 16. Ne2 {[%clk 0:02:59.7]} 16... Ne4 {[%clk
0:02:35.7]} 17. Nf4 {[%clk 0:02:57.4]} 17... Ndf6 {[%clk 0:02:34.5]} 18. Nd3
{[%clk 0:02:44.6]} 18... Rc7 {[%clk 0:02:30.4]} 19. Nfe5 {[%clk 0:02:38.4]}
19... Rec8 {[%clk 0:02:27]} 20. f3 {[%clk 0:02:27.5]} 20... Ng5 {[%clk
0:02:25.1]} 21. Kf2 {[%clk 0:02:13.2]} 21... Ne6 {[%clk 0:02:23.4]} 22. Bh3
{[%clk 0:02:06.1]} 22... Rd8 {[%clk 0:02:17.4]} 23. Bxe6 {[%clk 0:01:40.2]}
23... Qxe6 {[%clk 0:02:14.4]} 24. Nf4 {[%clk 0:01:39.5]} 24... Qe7 {[%clk
0:02:13]} 25. Qd3 {[%clk 0:01:26.2]} 25... Rdc8 {[%clk 0:02:06]} 26. g4 {[%clk
0:01:07.7]} 26... h6 {[%clk 0:02:04.8]} 27. h4 {[%clk 0:00:57.9]} 27... Nd7
{[%clk 0:01:58.9]} 28. Nxd7 {[%clk 0:00:46.9]} 28... Qxh4+ {[%clk 0:01:57.3]}
29. Kg2 {[%clk 0:00:47.6]} 29... Rxd7 {[%clk 0:01:57.4]} 30. Qf5 {[%clk
0:00:48.2]} 30... Rcd8 {[%clk 0:01:52.8]} 31. dxc5 {[%clk 0:00:36.8]} 31... bxc5
{[%clk 0:01:48.5]} 32. Rh1 {[%clk 0:00:19.2]} 32... Qe7 {[%clk 0:01:45.7]} 33.
Rxh6 {[%clk 0:00:13.1]} 33... gxh6 {[%clk 0:01:36.8]} 34. Bf6 {[%clk 0:00:13.2]}
34... Qxe3 {[%clk 0:01:34.6]} 35. Nh5 {[%clk 0:00:13.9]} 35... d4 {[%clk
0:01:10.4]} 36. Bxd8 {[%clk 0:00:13.3]} 36... Rxd8 {[%clk 0:01:10.7]} 37. Qf6
{[%clk 0:00:09.5]} 37... Bf8 {[%clk 0:00:37.5]} 38. Qxd8 {[%clk 0:00:09.6]}
38... Qxf3+ {[%clk 0:00:37]} 39. Kh2 {[%clk 0:00:10.1]} 39... Qh1+ {[%clk
0:00:31.3]} 40. Kg3 {[%clk 0:00:10.4]} 40... Qg1+ {[%clk 0:00:31.6]} 41. Kh3
{[%clk 0:00:09.1]} 41... Bf3 {[%clk 0:00:27.1]} 42. Qh4 {[%clk 0:00:03.9]} 42...
Qh1+ {[%clk 0:00:24]} 43. Rh2 {[%clk 0:00:02.8]} 43... Qf1+ {[%clk 0:00:21.8]}
44. Kg3 {[%clk 0:00:03.4]} 44... Bd6+ {[%clk 0:00:21.9]} 45. Nf4 {[%clk
0:00:03.9]} 45... Be4 {[%clk 0:00:15.3]} 46. Qxh6 {[%clk 0:00:04.2]} 46... Qf3+
{[%clk 0:00:15.6]} 47. Kh4 {[%clk 0:00:02.5]} 47... Bxf4 {[%clk 0:00:15.5]} 0-1

[Event "Early-Titled-Tuesday-Blitz-March-19-2024"]
[Site "Chess.com"]
[Date "2024.03.19"]
[Round "10"]
[White "KNVB"]
[Black "TERMINATOR_PC"]
[Result "1-0"]
[WhiteElo "2825"]
[BlackElo "2595"]
[TimeControl "180+1"]
[EndTime "9:55:47 PDT"]
[Termination "KNVB won by resignation"]

1. e4 {[%clk 0:03:00.9]} 1... e5 {[%clk 0:02:55.1]} 2. Nf3 {[%clk 0:03:00.4]}
2... Nc6 {[%clk 0:02:55.6]} 3. Nc3 {[%clk 0:03:00]} 3... Nf6 {[%clk 0:02:55.9]}
4. Nd5 {[%clk 0:02:59.8]} 4... Nxe4 {[%clk 0:02:50.2]} 5. d4 {[%clk 0:02:57.1]}
5... d6 {[%clk 0:02:48.9]} 6. Bc4 {[%clk 0:02:47.8]} 6... Be7 {[%clk 0:02:39.7]}
7. O-O {[%clk 0:00:35.3]} 7... O-O {[%clk 0:02:29.3]} 8. Re1 {[%clk 0:00:34.4]}
8... Nf6 {[%clk 0:02:28.4]} 9. dxe5 {[%clk 0:00:17.3]} 9... dxe5 {[%clk
0:02:21.6]} 10. Nxe5 {[%clk 0:00:12.8]} 10... Nxd5 {[%clk 0:02:18.5]} 11. Qxd5
{[%clk 0:00:06.8]} 11... Qxd5 {[%clk 0:02:16.1]} 12. Bxd5 {[%clk 0:00:07.7]}
12... Nxe5 {[%clk 0:02:15.6]} 13. Rxe5 {[%clk 0:00:08.6]} 13... Bf6 {[%clk
0:02:14.5]} 14. Re1 {[%clk 0:00:07.4]} 14... Bf5 {[%clk 0:02:11.9]} 15. c3
{[%clk 0:00:04.7]} 15... c6 {[%clk 0:02:11.4]} 16. Bf3 {[%clk 0:00:02.9]} 16...
Rad8 {[%clk 0:02:09.5]} 17. Be3 {[%clk 0:00:03]} 17... a6 {[%clk 0:02:05]} 18.
Rad1 {[%clk 0:00:02.7]} 18... g5 {[%clk 0:01:52.6]} 19. g3 {[%clk 0:00:02.1]}
19... Kg7 {[%clk 0:01:49.8]} 20. Rxd8 {[%clk 0:00:01.5]} 20... Rxd8 {[%clk
0:01:49.7]} 21. Rd1 {[%clk 0:00:02.4]} 21... Rxd1+ {[%clk 0:01:49.3]} 22. Bxd1
{[%clk 0:00:03.3]} 22... g4 {[%clk 0:01:43.7]} 23. f3 {[%clk 0:00:02.6]} 23...
h5 {[%clk 0:01:44]} 24. Kf2 {[%clk 0:00:02.5]} 24... Kf8 {[%clk 0:01:40.8]} 25.
Bc5+ {[%clk 0:00:02.3]} 25... Ke8 {[%clk 0:01:37.7]} 26. Ke3 {[%clk 0:00:02.6]}
26... Be5 {[%clk 0:01:36]} 27. Bd4 {[%clk 0:00:02.4]} 27... Bd6 {[%clk
0:01:32.8]} 28. Bf6 {[%clk 0:00:02.1]} 28... Kd7 {[%clk 0:01:31.4]} 29. Bd4
{[%clk 0:00:01.8]} 29... Ke6 {[%clk 0:01:29.7]} 30. Bb3+ {[%clk 0:00:01.9]}
30... Ke7 {[%clk 0:01:30.2]} 31. a3 {[%clk 0:00:02.3]} 31... c5 {[%clk
0:01:30.4]} 32. Bg7 {[%clk 0:00:01.8]} 32... f6 {[%clk 0:01:26.9]} 33. Bh6
{[%clk 0:00:02]} 33... b5 {[%clk 0:01:26.1]} 34. Bd5 {[%clk 0:00:02.2]} 34... a5
{[%clk 0:01:18.8]} 35. Bf4 {[%clk 0:00:02.4]} 35... b4 {[%clk 0:01:14.7]} 36.
axb4 {[%clk 0:00:02.2]} 36... axb4 {[%clk 0:01:14.9]} 37. cxb4 {[%clk
0:00:02.7]} 37... cxb4 {[%clk 0:01:15.5]} 38. fxg4 {[%clk 0:00:02.1]} 38... hxg4
{[%clk 0:01:14.2]} 39. Bxd6+ {[%clk 0:00:02.6]} 39... Kxd6 {[%clk 0:01:13.8]}
40. Kd4 {[%clk 0:00:03.5]} 40... Bc2 {[%clk 0:01:12.7]} 41. Bc4 {[%clk
0:00:02.4]} 41... f5 {[%clk 0:01:11.3]} 42. Bd5 {[%clk 0:00:02.2]} 42... Bd3
{[%clk 0:01:09.1]} 43. Bg2 {[%clk 0:00:02.1]} 43... Ba6 {[%clk 0:01:06]} 44. h4
{[%clk 0:00:02.2]} 44... gxh3 {[%clk 0:01:05.9]} 45. Bxh3 {[%clk 0:00:02.8]}
45... Bc8 {[%clk 0:01:06.1]} 46. Bg2 {[%clk 0:00:02.3]} 46... Be6 {[%clk
0:01:06.1]} 47. Bf3 {[%clk 0:00:02.5]} 47... Bf7 {[%clk 0:01:05.7]} 48. Be2
{[%clk 0:00:03]} 48... Ke7 {[%clk 0:01:04.6]} 49. Ke5 {[%clk 0:00:02.9]} 49...
Be6 {[%clk 0:01:04.9]} 50. Bd3 {[%clk 0:00:03.1]} 50... Kf7 {[%clk 0:01:03.1]}
51. Bxf5 {[%clk 0:00:03.2]} 51... Bb3 {[%clk 0:01:03.8]} 52. g4 {[%clk
0:00:03.4]} 52... Kg7 {[%clk 0:01:04.3]} 53. g5 {[%clk 0:00:04]} 53... Bc4
{[%clk 0:01:04.6]} 54. Kd4 {[%clk 0:00:04.6]} 54... Be2 {[%clk 0:01:04.8]} 55.
Kc5 {[%clk 0:00:05.2]} 55... b3 {[%clk 0:01:04]} 56. Kb4 {[%clk 0:00:05.7]}
56... Bd1 {[%clk 0:01:03.2]} 57. Kc3 {[%clk 0:00:06.1]} 57... Kf7 {[%clk
0:01:02.6]} 58. Kd2 {[%clk 0:00:05.9]} 58... Bf3 {[%clk 0:01:02.3]} 59. Bd3
{[%clk 0:00:05.8]} 59... Kg7 {[%clk 0:01:02.2]} 60. Ke3 {[%clk 0:00:05.6]} 60...
Bd1 {[%clk 0:01:00.4]} 61. Be4 {[%clk 0:00:06.1]} 61... Bg4 {[%clk 0:00:59.7]}
62. Bd5 {[%clk 0:00:04.6]} 62... Bd1 {[%clk 0:00:59.9]} 63. Kd2 {[%clk
0:00:04.8]} 63... Bc2 {[%clk 0:01:00.4]} 64. Kc3 {[%clk 0:00:03.9]} 64... Kg6
{[%clk 0:00:56.7]} 65. Bxb3 {[%clk 0:00:04.2]} 65... Bf5 {[%clk 0:00:57]} 66.
Bc2 {[%clk 0:00:03.6]} 66... Kxg5 {[%clk 0:00:57.9]} 67. Bxf5 {[%clk 0:00:03.8]}
67... Kxf5 {[%clk 0:00:58.8]} 68. Kd4 {[%clk 0:00:04.7]} 68... Ke6 {[%clk
0:00:59.3]} 69. Kc5 {[%clk 0:00:05.5]} 69... Kd7 {[%clk 0:00:59.7]} 70. Kb6
{[%clk 0:00:06.2]} 70... Kc8 {[%clk 0:01:00.1]} 71. b4 {[%clk 0:00:07]} 71...
Kb8 {[%clk 0:01:00.5]} 72. b5 {[%clk 0:00:07.8]} 72... Kc8 {[%clk 0:01:01]} 73.
Ka7 {[%clk 0:00:08.3]} 1-0